Cogmind - Beta 15 @@@ ROGUE MODE // 2025.06.16 @ 22:21:09 Player: ned_arb Result: Self-destructed Performance ------------- Evolutions (3) 1500 Regions Visited (6) 1200 Robots Destroyed (128) 640 Value Destroyed (3580) 3580 Prototype IDs (13) 260 Alien Tech Used (0) 0 Bonus (79) 79 TOTAL SCORE: 7259 Bonus ------- High Alert Combat Kills 79 Cogmind --------- Core Integrity 331/700 Matter 238/300 Energy 200/290 System Corruption 2% Temperature Warning (396) Movement Treading (145) Location -7/Factory Parts ------- > --- POWER (1) -------- Improved Deuterium Engine > --- PROPULSION (3) --- Advanced Treads Advanced Treads > --- UTILITY (6) ------ Large Storage Unit Improved Signal Interpreter Advanced Targeting Computer Improved Medium Armor Plating Hacking Suite High-powered Tractor Beam > --- WEAPON (3) ------- Improved Assault Rifle Enhanced Autogun > --- INVENTORY (15) --- Light Treads Light Treads Large Matter Pod (0) Hacking Suite Improved Assault Rifle Advanced Assault Cannon Advanced Assault Cannon Advanced Assault Cannon Heavy Missile Launcher Peak State ------------ > --- POWER ------------ Improved Deuterium Engine > --- PROPULSION ------- Advanced Treads Advanced Treads Advanced Treads > --- UTILITY ---------- Large Storage Unit Improved Sensor Array Improved Signal Interpreter Advanced Targeting Computer Improved Medium Armor Plating Hacking Suite > --- WEAPON ----------- Minigun Enhanced Autogun Precision Assault Rifle > --- INVENTORY -------- Improved Deuterium Engine Light Treads Light Treads Advanced Treads Improved Medium Armor Plating Hacking Suite High-powered Tractor Beam Heavy Assault Rifle Improved Assault Rifle Improved Assault Rifle Advanced Assault Cannon Advanced Assault Cannon Advanced Assault Cannon Improved Grenade Launcher [Rating: 46] Favorites ----------- Power Improved Ion Engine Engine Improved Ion Engine Propulsion Light Treads Treads Light Treads Wheel Wheel Utility Large Storage Unit Device Improved Sensor Array Storage Large Storage Unit Processor Advanced Targeting Computer Hackware Hacking Suite Protection Improved Light Armor Plating Weapon Enhanced Autogun Energy Gun EM Pulse Gun Ballistic Gun Enhanced Autogun Ballistic Cannon Advanced Assault Cannon Launcher Grenade Launcher Special Weapon Mining Laser Build | -11 -10 -10 -10 -9 -8 -7 ------- Run | Yrd Mat Min Exi Min Mat Fac Slots Evolved 6 | . . . . . 4 2 Power . | . . . . . . . Propulsion 1 | . . . . . 1 . Utility 4 | . . . . . 2 2 Weapon 1 | . . . . . 1 . Parts Attached 76 | 9 6 7 1 . 22 31 Power 9 | 2 1 1 . . 2 3 Engine 9 | 2 1 1 . . 2 3 Core . | . . . . . . . Reactor . | . . . . . . . Propulsion 24 | 2 . 2 . . 11 9 Treads 20 | 2 . . . . 9 9 Leg . | . . . . . . . Wheel 4 | . . 2 . . 2 . Hover . | . . . . . . . Flight . | . . . . . . . Utility 19 | 2 2 1 1 . 3 10 Device 6 | 1 . . . . . 5 Storage 2 | 1 1 . . . . . Processor 5 | . . . 1 . 1 3 Hackware 1 | . . . . . 1 . Protection 5 | . 1 1 . . 1 2 Artifact . | . . . . . . . Weapon 24 | 3 3 3 . . 6 9 Energy Gun 4 | 3 . . . . 1 . Energy Cannon . | . . . . . . . Ballistic Gun 15 | . 2 2 . . 5 6 Ballistic Cannon 3 | . . . . . . 3 Launcher 1 | . . 1 . . . . Special Weapon 1 | . 1 . . . . . Impact Weapon . | . . . . . . . Slashing Weapon . | . . . . . . . Piercing Weapon . | . . . . . . . Special Melee Weapon . | . . . . . . . Unidentified Prototypes 6 | . . . . . 2 4 Parts Lost 18 | . . 5 . . 3 10 Power 4 | . . 1 . . 1 2 Propulsion 6 | . . 2 . . 1 3 Utility 5 | . . . . . 1 4 Weapon 3 | . . 2 . . . 1 Highest Loss Streak 6 | . . 4 . . 1 6 To Critical Strikes . | . . . . . . . Average Backups 12 | 3 10 13 13 13 12 14 Power . | . 1 1 1 1 . . Propulsion 1 | . 1 . . . 1 2 Utility 4 | . 3 7 6 5 4 5 Weapon 5 | 1 3 4 6 6 6 6 Tool/Special . | . . . . . . . Unused Backups 22 | . 2 3 . . 6 11 Power 2 | . . . . . . 2 Propulsion 1 | . . . . . . 1 Utility 9 | . 1 2 . . 2 4 Weapon 10 | . 1 1 . . 4 4 Tool/Special . | . . . . . . . Average Slot Usage (%) 97 | . 99 98 100 100 92 99 Engine 9 | . 14 13 14 14 8 6 Treads 20 | . 28 10 . . 20 22 Wheel 4 | . . 16 28 28 5 . Device 6 | . 10 8 7 13 2 6 Storage 9 | . 14 14 14 14 8 7 Processor 6 | . . . 6 . . 14 Hackware 5 | . . . . . 8 7 Protection 6 | . 3 5 . . 10 7 Ballistic Gun 24 | . 23 27 28 27 26 22 Peak Build Rating 46 | 7 12 14 12 14 33 46 Average Rating 26 | 5 10 11 12 13 27 40 On Entrance 12 | . 7 12 12 12 14 33 Naked Turns . | . . . . . . . Heaviest Build 50 | 15 34 34 34 34 42 50 Greatest Support 66 | 40 40 40 20 20 63 66 Greatest Overweight (x) 3 | 1 . 3 1 1 1 . Average Overweight (x) . | . . . 1 1 . . Largest Inventory Capacity 15 | 8 15 15 15 15 15 15 Average Capacity 14 | 7 13 15 15 15 14 15 Most Carried 15 | 5 15 15 13 15 15 15 Average Carried 13 | 3 10 13 13 14 13 14 Final Capacity 15 | 8 15 15 15 15 15 15 Final Carried 15 | 5 15 13 13 15 15 9 Class Distribution -------------------- 36% | Mutant 29% | Skirmisher 14% | Tank 5% | Scavenger-Skirmisher 5% | Scavenger-Tank 3% | Gunner 3% | Scavenger-Gunner Dominant Class ---------------- Mutant | -10/Materials Mutant | -10/Mines Mutant | -10/Exiles Mutant | -9/Mines Tank | -8/Materials Skirmisher | -7/Factory Resources | -11 -10 -10 -10 -9 -8 -7 ----------- Run | Yrd Mat Min Exi Min Mat Fac Matter Collected 5117 | 290 559 410 . 2 1880 1976 Remotely 298 | . . . . . . 298 Salvage Created 5174 | 199 640 350 . 8 1821 2156 Parts 284 | 13 36 18 . . 101 116 Haulers Intercepted 10 | . 1 . . . 6 3 Recyclers Shooed 8 | . 2 4 . . 1 1 Parts Field Recycled . | . . . . . . . Retrieved Matter . | . . . . . . . Parts Self-Destructed . | . . . . . . . Prevented . | . . . . . . . Kills | -11 -10 -10 -10 -9 -8 -7 ------- Run | Yrd Mat Min Exi Min Mat Fac Combat Hostiles Destroyed 77 | . 13 10 . 3 22 29 Guns 68 | . 13 7 . . 19 29 AOE 9 | . . 3 . 3 3 . Classes Destroyed 13 | 2 5 1 . . 4 1 Worker 6 | . . 1 . . 5 . Builder 4 | . . . . . 2 2 Tunneler 5 | 5 . . . . . . Hauler 10 | . 1 . . . 6 3 Recycler 12 | 1 . 1 . . 4 6 Operator 3 | . 1 . . . 1 1 Watcher 11 | . 3 . . . 4 4 Swarmer 14 | . 3 5 . 3 3 . Grunt 41 | . 10 4 . . 11 16 Duelist 4 | . . . . . 3 1 Sentry 8 | . . . . . 4 4 Hunter 3 | . . . . . 1 2 Programmer 6 | . . . . . . 6 Best Kill Streak 8 | 3 4 4 . 3 8 4 Combat Bots Only 6 | . 4 3 . 3 6 4 Max Kills in Single Turn 2 | 1 2 2 . 1 2 2 Gunslinging 1 | . 1 . . . . . Exploded 2 | . . 2 . 1 2 . Melee . | . . . . . . . Uniques/NPCs Destroyed 1 | . . 1 . . . . YI-UF0 (-10/Mines) Combat | -11 -10 -10 -10 -9 -8 -7 -------- Run | Yrd Mat Min Exi Min Mat Fac Hostile Shots Fired 476 | . 36 60 . 12 74 294 Missed 130 | . 14 17 . 3 15 81 Hits 346 | . 22 43 . 9 59 213 Melee 13 | . . . . . 6 7 Projectile 333 | . 22 43 . 9 53 206 AOE 15 | . . 15 . . . . Critical Strikes 11 | . 1 2 . . 1 7 Part Disruptions 1 | . . . . . . 1 Damage Taken 4931 | . 264 805 . 92 1019 2751 Core 648 | . 38 129 . 13 99 369 Absorbed by Shields . | . . . . . . . Redirected to Shielding 26 | . 8 18 . . . . Regen/Repaired (Parts) 467 | . . . . . 352 115 Core Remaining (%) 70 | 100 . . . 28 82 . Volleys Fired 337 | 27 47 28 . 5 107 123 Largest 3 | 1 2 2 . 2 3 3 Hottest 100 | 40 100 46 . 53 75 75 Shots Fired 837 | 27 93 53 . 9 315 340 Gun 815 | 27 92 50 . 5 312 329 Cannon 11 | . . . . . . 11 Launcher 10 | . . 3 . 4 3 . Special 1 | . 1 . . . . . Kinetic 783 | . 76 50 . 5 312 340 Thermal 28 | 27 1 . . . . . Explosive 10 | . . 3 . 4 3 . Electromagnetic 16 | . 16 . . . . . Robot Hit Streak 26 | 8 26 15 . 3 13 26 Robot Miss Streak 7 | 1 3 4 . 3 7 3 Penetration Max . | . . . . . . . Secondary Targets 5 | . 1 1 . . 1 2 Max Gunslinging Chain 1 | . 1 1 . . 1 1 Shots Hit Robots 547 | 23 64 37 . 3 186 234 Core Hits 228 | 7 29 19 . 6 77 90 Critical Kills 1 | . . . . . 1 . Critical Parts Destroyed 2 | . . 1 . . 1 . Critical Strikes 3 | . . 1 . . 2 . Destroy 3 | . . 1 . . 2 . Melee Attacks . | . . . . . . . Impact . | . . . . . . . Slashing . | . . . . . . . Piercing . | . . . . . . . Sneak Attacks . | . . . . . . . Combat Hostiles . | . . . . . . . Follow-up Attacks . | . . . . . . . Damage Inflicted 9907 | 251 995 795 . 207 3283 4376 Guns 9227 | 251 989 589 . 31 3041 4326 Cannons . | . . . . . . . Explosions 634 | . . 192 . 170 225 47 Melee . | . . . . . . . Ramming 46 | . 6 14 . 6 17 3 Kinetic 8810 | . 823 589 . 31 3041 4326 Thermal 298 | 251 . . . . . 47 Explosive 587 | . . 192 . 170 225 . Electromagnetic 166 | . 166 . . . . . Impact . | . . . . . . . Slashing . | . . . . . . . Piercing . | . . . . . . . Highest Corruption 6 | . . . . . 4 6 Average Corruption 4 | . . . . . 4 4 Corruption Purged 5 | . . . . . . 5 Corruption Blocked . | . . . . . . . Effects 88 | . . . . . 29 59 Message Errors 15 | . . . . . 4 11 Matter Fused 17 | . . . . . 5 12 Heat Flow Errors 8 | . . . . . 2 6 Energy Discharges 14 | . . . . . 4 10 Parts Rejected 1 | . . . . . 1 . Parts Fused 2 | . . . . . 1 1 Data Loss (minor) 10 | . . . . . 3 7 Data Loss (major) 3 | . . . . . 2 1 Misfires 7 | . . . . . 3 4 Alerts 4 | . . . . . 1 3 Weapon Failures 7 | . . . . . 3 4 Overload Shots . | . . . . . . . Overflow Damage 33 | . . 4 . . 29 . Projectiles . | . . . . . . . Explosions 33 | . . 4 . . 29 . Melee . | . . . . . . . Knockbacks . | . . . . . . . Impact . | . . . . . . . Kinetic . | . . . . . . . Secondary . | . . . . . . . Self-Inflicted Damage 204 | . . 15 . 35 40 114 Shots 4 | . . 1 . 1 1 1 Rammed 13 | . 2 4 . 1 4 2 Targets Rammed 15 | . 2 4 . 1 6 2 Kicked . | . . . . . . . Crushed 2 | . . . . . 2 . Highest Temperature 403 | . 66 43 . 14 297 403 Average Temperature 70 | . 18 12 . 9 77 89 Received Heat Transfer 1515 | . 159 117 . . 315 924 Siege Activations . | . . . . . . . Martial Activations . | . . . . . . . Shielding Activations . | . . . . . . . Robots Disrupted . | . . . . . . . Combat Hostiles . | . . . . . . . Robots Corrupted . | . . . . . . . Combat Hostiles . | . . . . . . . Parts Fried . | . . . . . . . Impact Corruptions . | . . . . . . . Robots Melted . | . . . . . . . Combat Hostiles . | . . . . . . . Parts Melted . | . . . . . . . Heat Transferred 625 | 575 . . . . . 50 Parts Sabotaged . | . . . . . . . Parts Stolen . | . . . . . . . Parts Stripped . | . . . . . . . Power Chain Reactions . | . . . . . . . Alert | -11 -10 -10 -10 -9 -8 -7 ------- Run | Yrd Mat Min Exi Min Mat Fac Maximum Alert Level 2 | . 1 . . . 1 2 Low Security (%) 76 | 100 99 100 . 100 75 57 Level 1 20 | . . . . . 24 34 Level 2 3 | . . . . . . 8 Level 3 . | . . . . . . . Level 4 . | . . . . . . . Level 5 . | . . . . . . . High Security . | . . . . . . . Max Security . | . . . . . . . Peak Influence 487 | 10 205 183 . 89 302 487 Initial 133 | . . 54 . . 14 133 Average 115 | 1 67 61 . 23 83 181 Influence Increases 2509 | 30 434 274 . 89 730 952 Destroy 0b10 Robot/C 1520 | . 260 180 . 60 440 580 Destroy 0b10 Robot/NC 255 | 30 25 10 . . 110 80 Destroy Leader 392 | . 58 40 . 10 110 174 Successful Hack 89 | . 59 . . . 16 14 Disable Machine 90 | . 15 . . . 15 60 Destroy Structure 103 | . 2 14 . 19 24 44 Lose Combat Pursuer 60 | . 15 30 . . 15 . Influence Decreases 2043 | 30 295 413 . 50 476 779 Entered New Map 270 | . . 85 . . 25 160 Time Decay 1596 | 30 295 278 . 50 421 522 Lost Part 177 | . . 50 . . 30 97 Squads Dispatched 18 | . 1 1 . . 1 15 Investigation 4 | . 1 1 . . . 2 Extermination 6 | . . . . . . 6 Reinforcement 4 | . . . . . 1 3 Assault . | . . . . . . . Garrison 4 | . . . . . . 4 Intercept . | . . . . . . . Searches Triggered . | . . . . . . . Construction Impeded . | . . . . . . . Haulers Reinforced 2 | . . . . . . 2 Active Scanning Responses . | . . . . . . . Cargo Convoy Interrupts . | . . . . . . . Stealth | -11 -10 -10 -10 -9 -8 -7 --------- Run | Yrd Mat Min Exi Min Mat Fac Distress Signals 4 | . 1 . . . 3 . Communications Jammed . | . . . . . . . Distress Signals . | . . . . . . . Times Spotted 118 | . 22 13 . 3 37 43 Peak Tracking Total 9 | . 3 3 . 3 4 9 Tactical Retreats 4 | . 1 2 . . 1 . Traps | -11 -10 -10 -10 -9 -8 -7 ------- Run | Yrd Mat Min Exi Min Mat Fac Traps Triggered . | . . . . . . . Indirectly . | . . . . . . . Trap Hack Attempts . | . . . . . . . Triggered . | . . . . . . . Disarmed 11 | . 11 . . . . . Reprogrammed . | . . . . . . . Reused . | . . . . . . . Traps Extracted . | . . . . . . . Installed . | . . . . . . . Triggered . | . . . . . . . Machines | -11 -10 -10 -10 -9 -8 -7 ---------- Run | Yrd Mat Min Exi Min Mat Fac Machines Disabled 6 | . 1 . . . 1 4 Max in Single Turn 2 | . 1 . . . 1 2 Machines Repaired . | . . . . . . . Machines Dismantled . | . . . . . . . Machines Sabotaged . | . . . . . . . Overloaded Fab Kills . | . . . . . . . Hacking | -11 -10 -10 -10 -9 -8 -7 --------- Run | Yrd Mat Min Exi Min Mat Fac Machines Accessed 31 | . 8 1 1 1 9 11 Terminals 24 | . 8 . . . 8 8 Fabricators 1 | . . . . . . 1 Repair Stations 2 | . . . . . 1 1 Recycling Units . | . . . . . . . Scanalyzers . | . . . . . . . Garrison Access 1 | . . . . . . 1 Total Hacks 115 | . 29 1 23 1 32 29 Successful 76 | . 19 1 23 1 17 15 Failed 39 | . 10 . . . 15 14 Catastrophic 5 | . . . . . 3 2 Database Lockouts . | . . . . . . . Manual 57 | . 19 . . . 20 18 Terminals 70 | . 29 . . . 19 22 Fabricators 1 | . . . . . . 1 Repair Stations 17 | . . . . . 13 4 Recycling Units . | . . . . . . . Scanalyzers . | . . . . . . . Garrison Access 2 | . . . . . . 2 Terminal Hacks 39 | . 10 1 23 1 1 3 Record 24 | . 1 . 23 . . . Part Schematic 1 | . 1 . . . . . Robot Analysis 3 | . 2 . . . 1 . Prototype ID Bank 3 | . 1 . . . . 2 Open Door 2 | . . 1 . 1 . . Locate Traps 1 | . 1 . . . . . Disarm Traps 2 | . 2 . . . . . Hauler Manifests 2 | . 1 . . . . 1 Zone Layout 1 | . 1 . . . . . Fabricator Hacks 1 | . . . . . . 1 Network Status 1 | . . . . . . 1 Repair Station Hacks 14 | . . . . . 10 4 Scan Component 7 | . . . . . 5 2 Repair 7 | . . . . . 5 2 Recycling Unit Hacks . | . . . . . . . Scanalyzer . | . . . . . . . Garrison Access Hacks . | . . . . . . . Unauthorized Hacks 22 | . 9 . . . 6 7 Terminals 22 | . 9 . . . 6 7 Botnet 10 | . 4 . . . 4 2 Skim 12 | . 5 . . . 2 5 Fabricators . | . . . . . . . Repair Stations . | . . . . . . . Recycling Units . | . . . . . . . Scanalyzers . | . . . . . . . Garrison Access . | . . . . . . . Data Cores Recovered 1 | . . . . . 1 . Used . | . . . . . . . Hacking Detections 26 | . 8 . . . 7 11 Full Trace Events 3 | . . . . . 1 2 Feedback Events . | . . . . . . . Feedback Blocked . | . . . . . . . Robot Schematics Acquired . | . . . . . . . Robots Built . | . . . . . . . Authchips . | . . . . . . . Time . | . . . . . . . Total Robot Build Rating . | . . . . . . . Part Schematics Acquired 1 | . 1 . . . . . Parts Built . | . . . . . . . Authchips . | . . . . . . . Time . | . . . . . . . Total Part Build Rating . | . . . . . . . Parts Repaired 7 | . . . . . 5 2 Time 230 | . . . . . 148 82 Parts Recycled . | . . . . . . . Recycled Matter . | . . . . . . . Retrieved Matter . | . . . . . . . Retrieved Components . | . . . . . . . Parts Scanalyzed . | . . . . . . . Part Schematics Acquired . | . . . . . . . Parts Damaged . | . . . . . . . Bothacking | -11 -10 -10 -10 -9 -8 -7 ------------ Run | Yrd Mat Min Exi Min Mat Fac Used RIF Installer . | . . . . . . . Robots Hacked . | . . . . . . . Non-combat . | . . . . . . . Combat . | . . . . . . . Robot Hacks Applied . | . . . . . . . Relay Couplers Released . | . . . . . . . Fabnet Peak Effective % . | . . . . . . . Robots Rewired . | . . . . . . . Allies Hacked . | . . . . . . . Hacks Repelled . | . . . . . . . Allies | -11 -10 -10 -10 -9 -8 -7 -------- Run | Yrd Mat Min Exi Min Mat Fac Total Allies . | . . . . . . . Largest Group . | . . . . . . . Highest-Rated Group . | . . . . . . . Highest-Rated Ally . | . . . . . . . Total Orders . | . . . . . . . Ally Attacks . | . . . . . . . Total Damage . | . . . . . . . Kills . | . . . . . . . Allies Corrupted . | . . . . . . . Allies Melted . | . . . . . . . Intel | -11 -10 -10 -10 -9 -8 -7 ------- Run | Yrd Mat Min Exi Min Mat Fac Active Infowar (turns) 5570 | 72 1120 518 126 263 433 3038 Sensors 3038 | . . . . . . 3038 Seismic 2532 | 72 1120 518 126 263 433 . T.N.C. 5 | . . . . . . 5 Robot Analysis Total 3 | . 2 . . . 1 . Derelict Logs Recovered 3 | . . 2 . 1 . . Drone Launches . | . . . . . . . Drone Recoveries . | . . . . . . . Exploration | -11 -10 -10 -10 -9 -8 -7 ------------- Run | Yrd Mat Min Exi Min Mat Fac Turns Passed 8743 | 299 1512 868 239 266 1879 3680 Spaces Moved 4585 | 140 769 615 250 256 812 1743 Core 6 | 6 . . . . . . Treads 3442 | 134 769 107 . . 689 1743 Legs . | . . . . . . . Wheels 1137 | . . 508 250 256 123 . Hover . | . . . . . . . Flight . | . . . . . . . Fastest Speed 50 | 50 160 95 95 95 80 145 Average Speed 141 | 156 160 106 95 95 150 154 Slowest Speed 160 | 160 160 160 95 95 160 160 Overloaded Moves . | . . . . . . . Propulsion Burnouts . | . . . . . . . Robots Hopped . | . . . . . . . Potential Cave-ins . | . . . . . . . Cave-ins Triggered . | . . . . . . . Exploration Rate (%) 59 | 9 98 93 53 66 60 36 Regions Visited 6 Branch Regions 3 Pre-discovered Areas 4 | . . 2 1 . . 1 Known Exits Taken 2 | . . 1 1 . . . Unknown Exits Taken 4 | 1 1 . . 1 1 . Scrap Searched 1 | . . 1 . . . . Spaces Dug 2 | . . . . . . 2 Terrain Destroyed 93 | . . 14 . 23 12 44 Melee . | . . . . . . . Projectile 2 | . . . . . . 2 AOE 91 | . . 14 . 23 12 42 Terrain Rammed . | . . . . . . . Walls Destroyed . | . . . . . . . Machines Disabled . | . . . . . . . Actions | -11 -10 -10 -10 -9 -8 -7 --------- Run | Yrd Mat Min Exi Min Mat Fac Total 6361 | 188 972 777 250 269 1342 2563 Wait 1152 | 6 121 106 . 3 333 583 Move 4579 | 139 768 614 249 255 811 1743 Hop . | . . . . . . . Pick Up 79 | 4 15 6 . 2 29 23 Fast Attach 21 | 7 2 1 . . 7 4 Attach 25 | 1 . 4 . . 6 14 Detach 4 | 1 2 . . . . 1 Swap 91 | 3 6 10 1 3 20 48 Drop 58 | . 9 4 . . 23 22 Fire 337 | 27 47 28 . 5 107 123 Melee . | . . . . . . . Ram 1 | . . . . 1 . . Kick . | . . . . . . . Crush 14 | . 2 4 . . 6 2 Escape Stasis . | . . . . . . . Rewire . | . . . . . . . Trap . | . . . . . . . Miscellaneous . | . . . . . . . Route ------- -11/Scrapyard -10/Materials (discovered 6 exits: [*Mat x3] / *Min x2 / *Sub) -10/Mines (discovered 3 exits: [*Mat x2] / *Exi) -10/Exiles (discovered 2 exits: *Min x2) -9/Mines -8/Materials -7/Factory (discovered 3 exits: *Fac / *Low x2) History --------- Turn | Location | Event 9 | -11/Scrapyard | Discovered new exit (range 15) 300 | -11/Scrapyard | Entered Materials 308 | -10/Materials | Build established: Mutant 521 | -10/Materials | Discovered new exit (range 8) 739 | -10/Materials | Discovered new exit (range 16) 952 | -10/Materials | Discovered new exit (range 15) 1087 | -10/Materials | Discovered new exit (range 14) 1177 | -10/Materials | Loaded intel: 26 trap records 1247 | -10/Materials | Learned Storage security intel 1302 | -10/Materials | Discovered new exit (range 5) 1308 | -10/Materials | Learned Storage security intel 1361 | -10/Materials | Identified exit to Subcaves 1402 | -10/Materials | Learned location of 1 exit from Recycling 1514 | -10/Materials | Learned location of 2 exits from Subcaves 1812 | -10/Materials | Entered Mines 1872 | -10/Mines | Discovered new exit (range 6) 2135 | -10/Mines | Core integrity fell below 50% 2142 | -10/Mines | Destroyed YI-UF0 2171 | -10/Mines | Lost 4 parts (2n2w) 2202 | -10/Mines | Discovered new exit (range 7) 2318 | -10/Mines | Identified exit to Exiles 2337 | -10/Mines | Learned location of Zion (-6) 2498 | -10/Mines | Learned location of Storage (-9) 2558 | -10/Mines | Met a Derelict shopkeep closing up shop 2676 | -10/Mines | Deemed a non-threat by the Exiles lab entrance 2680 | -10/Mines | Entered Exiles 2702 | -10/Exiles | Met 8R-AWN 2719 | -10/Exiles | Met EX-HEX 2750 | -10/Exiles | Met EX-BIN 2764 | -10/Exiles | Met EX-DEC 2795 | -10/Exiles | Discovered new exit (range 14) 2807 | -10/Exiles | Identified exit to Mines 2908 | -10/Exiles | Discovered exit to Mines (range 14) 2919 | -10/Exiles | Entered Mines 2933 | -9/Mines | Found the Drone Emporium 2940 | -9/Mines | Found Prototype Device 2990 | -9/Mines | A weapon hastily lodged in a ceiling crevice suddenly fell to the ground 3111 | -9/Mines | Assembled infested the area 3174 | -9/Mines | Learned Materials stockpile data 3180 | -9/Mines | Discovered new exit (range 7) 3185 | -9/Mines | Entered Materials 3185 | -8/Materials | Evolved 4 slots: Propulsion x1, Utility x2, Weapon x1 3238 | -8/Materials | Repaired Imp. Ion Engine 3265 | -8/Materials | Repaired Grenade Launcher 3292 | -8/Materials | Repaired Lrg. Storage Unit 3400 | -8/Materials | Repaired Autogun 3433 | -8/Materials | Repaired Autogun 4022 | -8/Materials | Build established: Tank 4839 | -8/Materials | Discovered new exit (range 16) 5064 | -8/Materials | Entered Factory 5064 | -7/Factory | Evolved 2 slots: Utility x2 5156 | -7/Factory | Discovered new exit (range 9) 5172 | -7/Factory | Identified exit to Factory 5370 | -7/Factory | Build established: Skirmisher 6358 | -7/Factory | Discovered new exit (range 13) 6384 | -7/Factory | Identified exit to Lower Caves 7096 | -7/Factory | Build established: Scavenger-Skirmisher 7740 | -7/Factory | Learned location of Warlord (-4) 7797 | -7/Factory | Loaded intel: 85 trap records 7844 | -7/Factory | Learned location of 2 exits from Lower Caves 7879 | -7/Factory | Learned location of 2 exits from Archives 7903 | -7/Factory | Learned 2 Upper Caves zone layouts 7938 | -7/Factory | Learned location of 2 exits from Proximity Caves 7981 | -7/Factory | Learned Hub_04(d) emergency access door positions 8032 | -7/Factory | Learned location of 1 exit from Cetus 8226 | -7/Factory | Build established: Skirmisher 8324 | -7/Factory | Repaired Imp. Deuterium Engine 8365 | -7/Factory | Repaired Adv. Treads 8699 | -7/Factory | Garrison activated, responded to threat 8743 | -7/Factory | Core integrity fell below 50% 8744 | -7/Factory | Self-destructed Last Messages --------------- 08701_ Imp. Medium Armor Plating severed. 08702_ Critical hit (Burn: +37). 08704_ Acquired Imp. Medium Armor Plating. 08707_ Critical hit (Burn: +37). 08707_ Hvy. Assault Rifle severed. 08713_ Critical hit (Burn: +37). 08714_ Destroyed Axe. 08721_ Imp. Medium Armor Plating destroyed. 08723_ G-47 Trooper destroyed. 08732_ Imp. Deuterium Engine destroyed. 08732_ Adv. Treads destroyed. 08738_ Acquired 53 matter. 08738_ Acquired 42 matter. 08738_ Acquired 40 matter. 08738_ G-47 Trooper destroyed. 08738_ Switching to secondary target: Y-54 Guardian. 08739_ Acquired 51 matter. 08742_ Adv. Treads destroyed. 08742_ Minigun destroyed. Map ----- +----------------------------------------------------+ | ??????????????????# # """ """ #?# ???""""" | | ??????????????????# / """ """ #?# ??""""" | | ??????????????????# # #?# """""" | | ??????????????????# # #?# """""" | | ??????????????????# # #?#= """""" | | ??????????########## # #?# """""" | | ??????????# # ######+####+##?# """""" | | ??????????# # #??# | | ??????????# ] [[[ !# #??# | | ??????????# [[[==# """"""""" #??#######+#### | | ??????????# [[[ + #??# | | ??????????# # """"""""" #??# | | ??????????# # #### | | ??????????# ""T"" # ####### | | ??????????# """"" # "" #?????# | | ??????????########## "F / #?????# | | ???????????????????# "" #?????# | | ???????????????????# "" #?????# | | ???????????????????# #?????## | | ???????????????????# #??????? | | ???????############# ##################??????? | | ?????? #????????????????? | | ???????? = #????????????????? | | ????????? [ ##???????????????? | | ??????????"" """ [ gg T#???????????????? | | ??????????"" """ @ Y #???????????????? | | ??????????"" """ ######### Y ##???????????????? | | ?????? #???????# #????????????????? | | ??????"" """ """ #???????# #????????????????? | | ???????? """ """ #???????# #????????????????# | | ?????????""" """ +???????# #????????????????# | | ?????????? #???????# #????????????????# | | ???????????? """ #???????# #????????????????# | | ???????????? """ #???????# #????????????????# | | ?????????????""" #???????# #????????????????# | | ?????????????? ????????# #????????????????# | | ???????????????" ????????# #????????????????# | | ???????????????" ????????# #????????????????# | | ???????????????" ????????? #????????????????# | | ??????????????? ????????? #????????????????# | | ???????????????? ????????? ?????????????????# | | ???????????????? ????????? ???????????????????# | | ?????????????????????????????????????????????????? | | ?????????????????????????????????????????????????? | | ?????????????????????????????????????????????????? | | ?????????????????????????????????????????????????? | | ?????????????????????????????????????????????????? | | ???^?????????????????????????????????????????????? | | ??????^??????????????????????????????????????????? | | ?????????????????????????????????????????????????? | +----------------------------------------------------+ Best States ------------- Heat Dissipation 34 Energy Generation 16 Energy Capacity 290 Matter Stores 300 Matter Capacity 300 Sight Range 16 Robot Scan Range 15 Terrain Scan Density 10 Armor Coverage 300 Core Shielding 20 Weapon Cycling 15 Evasion (%) 44 Targeting Accuracy 8 Recoil Reduction 3 Kinecelleration 30 Offensive Hacking 10 Item Schematics ----------------- Lrg. Storage Unit | -10/Materials | Hacked Robot Schematics ------------------ None Fabricated ------------ Nothing Repaired ---------- Imp. Ion Engine | 12% | -8/Materials Grenade Launcher | 28% | -8/Materials Lrg. Storage Unit | 66% | -8/Materials Autogun | 33% | -8/Materials Autogun | 53% | -8/Materials Imp. Deuterium Engine | 25% | -7/Factory Adv. Treads | 67% | -7/Factory Alien Tech Used ----------------- None Achievements -------------- None Challenges ------------ None Game ------ Seed InterceptSpectralAutocannon Manual? 0 Play Time 01:25:12 Cumulative 39.3 hours Start 2025.06.15 @ 21:55:28 End 2025.06.16 @ 22:21:09 Sessions 5 Manual Loads 0 Difficulty Rogue Special Mode None Game No. 31 Rogue 24 Adventurer 7 Explorer 0 Win Type - Total 0 Types 0/0/0/0/0/0/0/0/0/0 Lore% 23 Gallery% 21 Achievement% 24 Wizard Run 0 Options --------- Layout 1 ASCII 0 Keyboard 1 Movement Numpad Keybinds 0 Fullscreen 2 Font 32/SmallcapsGlow Map View 50x35 Zoom Use 0% Tactical HUD 1 Map Filters NONE Filters NONE Steam 1 RUN: 9738aa99-6214-42ef-bf1a-d06973cd3fbd